bitfinex-derivatives/quotes_BNBF0:USTF0_20250309
["timestamp","ask_amount","ask_price","bid_price","bid_amount"]
[1741485648475,0.31210761,589.45,588.43,2.88388749]
[1741485648672,0.29558031,589.46,588.43,2.88388749]
[1741485648673,0.31210761,589.44,588.43,2.88388749]
[1741485648872,0.31210761,589.43,588.43,2.88388749]
[1741485649073,0.31210761,589.45,588.43,2.88388749]
[1741485649272,0.31210761,589.49,588.43,2.88388749]
[1741485649473,0.31210761,589.48,588.43,2.88388749]
[1741485649874,0.31210761,589.47,588.43,2.88388749]
[1741485650074,0.31210761,589.5,588.43,2.88388749]
[1741485650277,0.2955778,589.47,588.43,2.88388749]
[1741485650470,0.31210761,589.46,588.43,2.88388749]
[1741485652376,0.31210761,589.45,588.43,2.88388749]
[1741485652577,0.31210761,589.56,588.43,2.88388749]
[1741485652779,0.31210761,589.55,588.43,2.88388749]
[1741485653175,0.29557152,589.54,588.43,4.81688749]
[1741485653377,0.31210761,589.53,588.43,4.81688749]
[1741485653774,0.29557152,589.54,588.43,4.81688749]
[1741485654675,0.29557152,589.54,588.43,6.44988749]
[1741485655080,0.33923604,589.56,588.43,6.44988749]
[1741485655682,0.29551254,589.55,588.43,6.44988749]
[1741485656882,0.31199464,589.54,588.43,6.44988749]
[1741485659081,0.29551254,589.55,588.43,6.44988749]
[1741485661078,0.33923604,589.56,588.43,6.44988749]
[1741485661379,0.29551379,589.54,588.43,6.44988749]
[1741485664082,0.33923604,589.56,588.43,6.44988749]
[1741485665388,0.29547239,589.55,588.43,6.44988749]
[1741485666581,0.31201801,589.54,588.43,6.44988749]
[1741485669089,0.29547239,589.55,588.43,6.44988749]
[1741485669986,0.33923604,589.56,588.43,6.44988749]
[1741485670186,0.31200526,589.55,588.43,6.44988749]
[1741485670387,0.29552383,589.54,588.43,6.44988749]
[1741485676092,1.2617338,589.92,588.43,6.44988749]
[1741485676291,0.65096241,589.91,588.43,6.44988749]
[1741485676494,3.63522173,590.18,588.43,6.44988749]
[1741485676495,0.65096816,589.9,588.43,6.44988749]
[1741485676690,0.65097391,589.89,588.43,6.44988749]
[1741485676888,0.65097966,589.88,588.43,6.44988749]
[1741485677290,0.31192765,589.87,588.43,6.44988749]
[1741485677591,0.6509854,589.87,588.43,6.44988749]
[1741485677791,0.31192765,589.86,588.43,6.44988749]
[1741485682796,0.29543979,589.85,588.43,6.44988749]
[1741485683104,0.31192765,589.84,588.43,6.44988749]
[1741485685298,0.60738248,589.83,588.43,6.44988749]
[1741485685495,0.31192765,589.82,588.43,6.44988749]
[1741485688304,0.29545734,589.81,588.43,6.44988749]
[1741485688704,0.31192765,589.8,588.43,6.44988749]
[1741485689806,0.29545734,589.81,588.43,6.44988749]
[1741485690006,0.31198855,589.8,588.43,6.44988749]
[1741485691208,0.31198855,589.86,588.43,6.44988749]
[1741485691403,0.33906925,589.85,588.43,6.44988749]
[1741485691608,0.31198855,589.84,588.43,6.44988749]
[1741485691807,0.31199365,589.83,588.43,6.44988749]
[1741485692303,0.29546863,589.82,588.43,6.44988749]
[1741485692504,0.31199365,589.81,588.43,6.44988749]
[1741485694310,0.29546111,589.8,588.43,6.44988749]
[1741485694706,1.57372745,589.79,588.43,6.44988749]
[1741485694908,0.31199365,589.78,588.43,6.44988749]
[1741485697211,0.31199365,589.79,588.43,6.44988749]
[1741485697414,0.29546487,589.77,588.43,6.44988749]
[1741485697611,0.31199365,589.76,588.43,6.44988749]
[1741485699107,0.31195347,589.75,588.43,6.44988749]
[1741485699312,0.31195347,589.76,588.43,6.44988749]
[1741485700309,0.60742085,589.75,588.43,6.44988749]
[1741485700513,0.31195347,589.74,588.43,6.44988749]
[1741485701111,0.29546738,589.75,588.43,6.44988749]
[1741485702610,0.31190349,589.74,588.43,6.44988749]
[1741485702815,0.31190025,589.73,588.43,6.44988749]
[1741485703015,0.31190025,589.72,588.43,6.44988749]
[1741485703217,0.31190025,589.71,588.43,6.44988749]
[1741485703418,0.31190025,589.83,588.43,6.44988749]
[1741485703623,0.31190025,589.82,588.43,6.44988749]
[1741485703916,0.31190025,589.81,588.43,6.44988749]
[1741485704120,0.31190025,589.8,588.43,6.44988749]
[1741485704321,0.29542724,589.81,588.43,6.44988749]
[1741485704521,0.31190025,589.79,588.43,6.44988749]
[1741485704818,0.31190025,589.78,588.43,6.44988749]
[1741485705022,0.31190025,589.77,588.43,6.44988749]
[1741485705229,0.31190025,589.8,588.43,6.44988749]
[1741485706620,0.31189825,589.79,588.43,6.44988749]
[1741485706822,0.31189825,589.8,588.43,6.44988749]
[1741485707133,0.31189825,589.79,588.43,6.44988749]
[1741485707327,0.31189825,589.78,588.43,6.44988749]
[1741485707624,0.31189825,589.77,588.43,6.44988749]
[1741485707818,0.31189825,589.8,588.43,6.44988749]
[1741485709329,0.31189825,589.83,588.43,6.44988749]
[1741485709528,0.31189825,589.82,588.43,6.44988749]
[1741485709730,0.31189825,589.81,588.43,6.44988749]
[1741485709930,0.339075,589.84,588.43,6.44988749]
[1741485709931,0.31189825,589.83,588.43,6.44988749]
[1741485710131,0.339075,589.84,588.43,6.44988749]
[1741485710326,0.29542599,589.8,588.43,6.44988749]
[1741485710532,0.31189548,589.79,588.43,6.44988749]
[1741485711737,0.29542599,589.8,588.43,6.44988749]
[1741485712132,0.339075,589.84,588.43,6.44988749]
[1741485712334,0.31189579,589.83,588.43,6.44988749]
[1741485713334,0.29542599,589.82,588.43,6.44988749]
[1741485713535,0.31189579,589.81,588.43,6.44988749]
[1741485714834,0.29542599,589.82,588.43,6.44988749]
[1741485715333,0.339075,589.84,588.43,6.44988749]
[1741485715636,0.31186506,589.83,588.43,6.44988749]
[1741485716033,0.339075,589.84,588.43,6.44988749]
[1741485716237,0.29539088,589.82,588.43,6.44988749]
[1741485718139,1.2617338,590.3,588.43,6.44988749]
[1741485718339,0.65064234,590.29,588.43,6.44988749]
[1741485718531,0.65064808,590.28,588.43,6.44988749]
[1741485718733,0.65065382,590.27,588.43,6.44988749]
[1741485719037,0.65065956,590.26,588.43,6.44988749]
[1741485719238,0.6506653,590.25,588.43,6.44988749]
[1741485719438,0.65067104,590.24,588.43,6.44988749]
[1741485719638,0.65067678,590.23,588.43,6.44988749]
[1741485719838,0.65068252,590.22,588.43,6.44988749]
[1741485720035,0.65068826,590.21,588.43,6.44988749]
[1741485720239,0.65069401,590.2,588.43,6.44988749]
[1741485720538,0.65069975,590.19,588.43,6.44988749]
[1741485720745,0.65070549,590.18,588.43,6.44988749]
[1741485721043,1.2617338,590.22,588.43,6.44988749]
[1741485721044,0.3388854,590.17,588.43,6.44988749]
[1741485721342,0.3118236,590.16,588.43,6.44988749]
[1741485721536,0.33889689,590.15,588.43,6.44988749]
[1741485721736,0.3118236,590.14,588.43,6.44988749]
[1741485722140,0.29535202,590.13,588.43,6.44988749]
[1741485722339,0.3118236,590.12,588.43,6.44988749]
[1741485724244,0.3118236,590.11,588.43,6.44988749]
[1741485724435,0.3118236,590.14,588.43,6.44988749]
[1741485724635,0.3118236,590.1,588.43,6.44988749]
[1741485724838,0.3118236,590.09,588.43,6.44988749]
[1741485725036,0.3118236,590.08,588.43,6.44988749]
[1741485725242,0.29534952,590.08,588.43,6.44988749]
[1741485725443,0.3118236,590.07,588.43,6.44988749]
[1741485727437,0.3118236,590.14,588.43,6.44988749]
[1741485728342,0.29534952,590.13,588.43,6.44988749]
[1741485728538,0.3118236,590.12,588.43,6.44988749]
[1741485731946,0.29534952,590.13,588.43,6.44988749]
[1741485732244,0.31180959,590.12,588.43,6.44988749]
[1741485733947,0.29534952,590.13,588.43,6.44988749]
[1741485734155,0.31180991,590.12,588.43,6.44988749]
[1741485739551,0.33889689,590.15,588.43,6.44988749]
[1741485739743,0.29534952,590.11,588.43,6.44988749]
[1741485740149,0.31184697,590.1,588.43,6.44988749]
[1741485741552,0.29534952,590.11,588.43,6.44988749]
[1741485741852,0.31184112,590.1,588.43,6.44988749]
[1741485742053,0.33889689,590.15,588.43,6.44988749]
[1741485742254,0.31184154,590.14,588.43,6.44988749]
[1741485742448,0.29536456,590.09,588.43,6.44988749]
[1741485745157,0.33890837,590.13,588.43,6.44988749]
[1741485745352,0.29536205,590.08,588.43,6.44988749]
[1741485746455,0.31184,590.07,588.43,6.44988749]
[1741485748358,0.29536832,590.06,588.43,6.44988749]
[1741485748862,0.31183977,590.05,588.43,6.44988749]
[1741485749062,0.65079409,590.05,588.43,6.44988749]
[1741485749263,0.65079984,590.04,588.43,6.44988749]
[1741485749556,0.65080558,590.03,588.43,6.44988749]
[1741485749763,0.31183977,590.02,588.43,6.44988749]
[1741485751163,0.3389773,590.01,588.43,6.44988749]
[1741485751356,0.31183977,590.0,588.43,6.44988749]
[1741485751560,0.33898879,589.99,588.43,6.44988749]
[1741485751754,0.31183977,589.98,588.43,6.44988749]
[1741485751962,0.33900028,589.97,588.43,6.44988749]
[1741485752163,0.31183977,589.96,588.43,6.44988749]
[1741485753673,1.2617338,589.89,588.43,6.44988749]
[1741485753864,0.31183977,589.88,588.43,6.44988749]
[1741485754962,0.63450631,589.87,588.43,6.44988749]
[1741485755164,0.31183977,589.86,588.43,6.44988749]
[1741485755364,0.65090327,589.86,588.43,6.44988749]
[1741485755565,0.31183977,589.85,588.43,6.44988749]
[1741485755766,0.339075,589.84,588.43,6.44988749]
[1741485755962,0.31183977,589.83,588.43,6.44988749]
[1741485756472,0.3390865,589.82,588.43,6.44988749]
[1741485756663,0.31183977,589.81,588.43,6.44988749]
[1741485757370,0.29547616,589.8,588.43,6.44988749]
[1741485757575,0.31183977,589.79,588.43,6.44988749]
[1741485759970,0.31201696,589.78,588.43,6.44988749]
[1741485760167,0.31201696,589.79,588.43,6.44988749]
[1741485760471,0.31201696,589.78,588.43,6.44988749]
[1741485760666,0.31201696,589.79,588.43,6.44988749]
[1741485763274,0.31201696,589.81,588.43,6.44988749]
[1741485763574,0.3390865,589.82,588.43,6.44988749]
[1741485763575,0.31201696,589.8,588.43,6.44988749]
[1741485763768,0.31201696,589.81,588.43,6.44988749]
[1741485763969,0.31201696,589.8,588.43,6.44988749]
[1741485764172,0.3390865,589.82,588.43,6.44988749]
[1741485764173,0.31201696,589.81,588.43,6.44988749]
[1741485764373,0.29549121,589.8,588.43,6.44988749]
[1741485764571,0.31201696,589.79,588.43,6.44988749]
[1741485764769,0.33910949,589.78,588.43,6.44988749]
[1741485764968,0.31201696,589.77,588.43,6.44988749]
[1741485765170,0.33912099,589.76,588.43,6.44988749]
[1741485765574,0.31201998,589.75,588.43,6.44988749]
[1741485765774,0.65114672,589.75,588.43,6.44988749]
[1741485765972,0.31201998,589.74,588.43,6.44988749]
[1741485767272,0.2955025,589.73,588.43,6.44988749]
[1741485767471,0.31201998,589.72,588.43,6.44988749]
[1741485769272,0.31201998,589.74,588.43,6.44988749]
[1741485770374,0.2955025,589.73,588.43,6.44988749]
[1741485770575,0.31201998,589.72,588.43,6.44988749]
[1741485772979,0.2955025,589.73,588.43,6.44988749]
[1741485773181,0.31203835,589.72,588.43,6.44988749]
[1741485773385,0.65118235,589.72,588.43,6.44988749]
[1741485773676,0.6511881,589.71,588.43,6.44988749]
[1741485773882,0.65119385,589.7,588.43,6.44988749]
[1741485774082,0.6511996,589.69,588.43,6.44988749]
[1741485774282,0.65120535,589.68,588.43,6.44988749]
[1741485774484,0.6512111,589.67,588.43,6.44988749]
[1741485774676,0.65121685,589.66,588.43,6.44988749]
[1741485774879,0.65130269,589.65,588.43,6.44988749]
[1741485775080,0.65130844,589.64,588.43,6.44988749]
[1741485775381,0.65131419,589.63,588.43,6.44988749]
[1741485775582,0.31211843,589.62,588.43,6.44988749]
[1741485776177,0.33920727,589.61,588.43,6.44988749]
[1741485776382,0.31211843,589.6,588.43,6.44988749]
[1741485776583,0.33921877,589.59,588.43,6.44988749]
[1741485777084,0.31211843,589.58,588.43,6.44988749]
[1741485777279,0.33923028,589.57,588.43,6.44988749]
[1741485777479,0.31211843,589.56,588.43,6.44988749]
[1741485777683,0.33924179,589.55,588.43,6.44988749]
[1741485777986,0.31211843,589.54,588.43,6.44988749]
[1741485778986,0.3392533,589.53,588.43,6.44988749]
[1741485779186,0.31211843,589.52,588.43,6.44988749]
[1741485779387,0.33926481,589.51,588.43,6.44988749]
[1741485779589,0.31211843,589.5,588.43,6.44988749]
[1741485779886,0.33927632,589.49,588.43,6.44988749]
[1741485780081,0.31211843,589.48,588.43,6.44988749]
[1741485780889,0.33927632,589.49,588.43,6.44988749]
[1741485782188,0.29553889,589.48,588.43,6.44988749]
[1741485783991,0.33927632,589.49,588.43,6.44988749]
[1741485784589,0.29544731,589.48,588.43,6.44988749]
[1741485787187,1.2617338,590.14,588.43,6.44988749]
[1741485787386,0.29541847,589.47,588.43,6.44988749]
[1741485787791,0.33891411,590.12,588.43,6.44988749]
[1741485788094,0.31195217,590.11,588.43,6.44988749]
[1741485788293,0.33893134,590.09,588.43,6.44988749]
[1741485788489,0.31195217,590.08,588.43,6.44988749]
[1741485788688,0.33894283,590.07,588.43,6.44988749]
[1741485788888,0.31195217,590.06,588.43,6.44988749]
[1741485789189,0.33895432,590.05,588.43,6.44988749]
[1741485789394,0.31195217,590.04,588.43,6.44988749]
[1741485789590,0.33896581,590.03,588.43,6.44988749]
[1741485789794,0.31195217,590.02,588.43,6.44988749]
[1741485789995,0.3389773,590.01,588.43,6.44988749]
[1741485790197,0.31195217,590.0,588.43,6.44988749]
[1741485790396,0.33898879,589.99,588.43,6.44988749]
[1741485790594,0.31195217,589.98,588.43,6.44988749]
[1741485790789,0.33900028,589.97,588.43,6.44988749]
[1741485790995,0.31195617,589.96,588.43,6.44988749]
[1741485791694,0.33901178,589.95,588.43,6.44988749]
[1741485791893,0.31195617,589.94,588.43,6.44988749]
[1741485792193,0.33902327,589.93,588.43,6.44988749]
[1741485792398,0.31195617,589.92,588.43,6.44988749]
[1741485792599,0.33903476,589.91,588.43,6.44988749]
[1741485792799,0.31195617,589.9,588.43,6.44988749]
[1741485793001,0.33904626,589.89,588.43,6.44988749]
[1741485793294,0.31195617,589.88,588.43,6.44988749]
[1741485799403,0.29543226,589.87,588.43,6.44988749]
[1741485799805,0.33906925,589.85,588.43,6.44988749]
[1741485802399,0.29549498,589.84,588.43,6.44988749]
[1741485802607,0.6511343,589.83,588.43,6.44988749]
[1741485802803,0.65114005,589.82,588.43,6.44988749]
[1741485803111,0.6511458,589.81,588.43,6.44988749]
[1741485803303,0.65115154,589.8,588.43,6.44988749]
[1741485803508,0.31205355,589.79,588.43,6.44988749]
[1741485804008,0.33910949,589.78,588.43,6.44988749]
[1741485804209,0.31208932,589.77,588.43,6.44988749]
[1741485804402,0.33912099,589.76,588.43,6.44988749]
[1741485804604,0.31208932,589.75,588.43,6.44988749]
[1741485804806,0.33913249,589.74,588.43,6.44988749]
[1741485805007,0.31208932,589.73,588.43,7.95688749]
[1741485805306,0.60759433,589.73,588.43,7.95688749]
[1741485805505,0.29550501,589.73,588.43,7.95688749]
[1741485805803,0.31206064,589.72,588.43,7.95688749]
[1741485806909,0.29550501,589.73,588.43,7.95688749]
[1741485807905,0.65124978,589.72,588.43,7.95688749]
[1741485808109,0.65125553,589.71,588.43,7.95688749]
[1741485808309,0.65126128,589.7,588.43,7.95688749]
[1741485808504,0.31210578,589.69,588.43,7.95688749]
[1741485808708,0.339167,589.68,588.43,7.95688749]
[1741485811414,0.29555772,589.67,588.43,7.95688749]
[1741485811714,0.3391785,589.66,588.43,7.95688749]
[1741485814419,0.29551254,589.65,588.43,7.95688749]
[1741485815211,0.31206286,589.64,588.43,7.95688749]
[1741485817522,0.60757791,589.63,588.43,7.95688749]
[1741485817721,0.31206286,589.62,588.43,7.95688749]
[1741485820321,0.31206286,589.61,588.43,7.95688749]
[1741485820522,0.29549748,589.61,588.43,7.95688749]
[1741485820721,0.31206286,589.6,588.43,7.95688749]
[1741485821925,0.29549748,589.61,588.43,7.95688749]
[1741485822126,0.31200523,589.6,588.43,7.95688749]
[1741485823426,0.60749268,589.59,588.43,7.95688749]
[1741485823622,0.31200523,589.58,588.43,7.95688749]
[1741485825520,0.31197683,589.57,588.43,7.95688749]
[1741485825719,0.31197683,589.58,588.43,7.95688749]
[1741485825919,0.31197683,589.57,588.43,7.95688749]
[1741485826124,0.31197683,589.56,588.43,7.95688749]
[1741485826427,0.31197683,589.58,588.43,7.95688749]
[1741485826621,0.31197683,589.57,588.43,7.95688749]
[1741485827026,0.3391785,589.66,588.43,7.95688749]
[1741485827227,0.31198797,589.65,588.43,7.95688749]
[1741485827427,0.60742399,589.65,588.43,7.95688749]
[1741485827629,0.31198797,589.64,588.43,7.95688749]
[1741485829229,0.31199683,589.63,588.43,7.95688749]
[1741485829426,0.29547741,589.63,588.43,7.95688749]
[1741485829625,0.31199683,589.62,588.43,7.95688749]
[1741485831026,0.31199566,589.61,588.43,7.95688749]
[1741485831231,0.31199566,589.62,588.43,7.95688749]
[1741485831433,0.31199566,589.61,588.43,7.95688749]
[1741485831633,0.29547741,589.63,588.43,7.95688749]
[1741485831833,0.31202656,589.62,588.43,7.95688749]
[1741485832437,0.60753408,589.61,588.43,7.95688749]
[1741485832636,0.31202656,589.6,588.43,7.95688749]
[1741485835437,0.31202656,589.65,588.43,7.95688749]
[1741485835636,0.31202656,589.64,588.43,7.95688749]
[1741485835838,0.31202656,589.65,588.43,7.95688749]
[1741485836039,0.31202656,589.64,588.43,7.95688749]
[1741485836338,0.31202656,589.63,588.43,7.95688749]
[1741485836635,0.31202656,589.62,588.43,7.95688749]
[1741485838438,0.29549748,589.61,588.43,7.95688749]
[1741485838838,0.31202656,589.6,588.43,7.95688749]
[1741485839442,0.29549748,589.61,588.43,7.95688749]
[1741485840743,0.31199323,589.6,588.43,7.95688749]
[1741485841344,0.31199323,589.65,588.43,7.95688749]
[1741485841545,0.29548494,589.59,588.43,7.95688749]
[1741485843848,0.3120031,589.58,588.43,7.95688749]
[1741485844049,0.29548494,589.59,588.43,7.95688749]
[1741485844348,0.29548745,589.57,588.43,7.95688749]
[1741485847054,0.31199387,589.56,588.43,7.95688749]
[1741485850553,0.29548745,589.57,588.43,7.95688749]
[1741485850554,0.31200112,589.55,588.43,7.95688749]
[1741485850855,0.31200112,589.54,588.43,7.95688749]
[1741485851052,0.31200112,589.56,588.43,7.95688749]
[1741485851254,0.31200112,589.55,588.43,7.95688749]
[1741485851452,0.31200112,589.56,588.43,7.95688749]
[1741485851758,0.31200112,589.55,588.43,7.95688749]
[1741485851954,0.29548745,589.57,588.43,7.95688749]
[1741485851955,0.31200112,589.54,588.43,7.95688749]
[1741485852150,0.31200112,589.56,588.43,7.95688749]
[1741485852350,0.31200112,589.55,588.43,7.95688749]
[1741485852552,0.31200112,589.56,588.43,7.95688749]
[1741485852755,0.31200112,589.55,588.43,7.95688749]
[1741485853056,0.31200112,589.56,588.43,7.95688749]
[1741485853256,0.31200112,589.55,588.43,7.95688749]
[1741485853557,0.31200112,589.54,588.43,7.95688749]
[1741485855855,1.2617338,589.5,588.43,7.95688749]
[1741485856049,0.31200112,589.49,588.43,7.95688749]
[1741485856355,0.31203381,589.48,588.43,7.95688749]
[1741485856557,0.31203381,589.47,588.43,7.95688749]
[1741485859362,0.31203381,589.5,588.43,7.95688749]
[1741485859659,0.31211084,589.49,588.43,7.95688749]
[1741485859860,0.31211084,589.5,588.43,7.95688749]
[1741485860058,0.31211084,589.49,588.43,7.95688749]
[1741485860460,0.60765852,589.49,588.43,7.95688749]
[1741485860760,0.31211084,589.48,588.43,7.95688749]
[1741485861356,0.31209128,589.47,588.43,7.95688749]
[1741485861556,0.31209128,589.48,588.43,7.95688749]
[1741485861760,0.31209128,589.47,588.43,7.95688749]
[1741485862062,0.31209128,589.46,588.43,7.95688749]
[1741485862264,0.31209128,589.45,588.43,7.95688749]
[1741485862462,0.31209128,589.44,588.43,7.95688749]
[1741485862767,0.31209128,589.43,588.43,7.95688749]
[1741485862961,0.31209128,589.42,588.43,7.95688749]
[1741485863162,0.31209128,589.45,588.43,7.95688749]
[1741485863364,0.31209128,589.44,588.43,7.95688749]
[1741485863562,0.31209128,589.43,588.43,7.95688749]
[1741485863865,0.31209128,589.42,588.43,7.95688749]
[1741485864061,0.31209128,589.45,588.43,7.95688749]
[1741485865465,0.29555144,589.44,588.43,7.95688749]
[1741485865765,0.31209128,589.43,588.43,7.95688749]
[1741485868367,0.31209128,589.58,588.43,7.95688749]
[1741485868562,0.60764523,589.42,588.43,7.95688749]
[1741485868763,0.31209128,589.41,588.43,7.95688749]
[1741485868964,0.31209128,589.58,588.43,7.95688749]
[1741485869162,0.31209128,589.57,588.43,7.95688749]
[1741485869363,0.31209128,589.59,588.43,7.95688749]
[1741485869569,0.31209128,589.58,588.43,7.95688749]
[1741485869868,0.31209128,589.57,588.43,7.95688749]
[1741485870169,0.31209128,589.56,588.43,7.95688749]
[1741485870569,0.31209886,589.55,588.43,7.95688749]
[1741485870769,0.31209886,589.54,588.43,7.95688749]
[1741485870971,0.31209886,589.53,588.43,7.95688749]
[1741485871470,0.2955414,589.52,588.43,7.95688749]
[1741485871670,0.31209886,589.51,588.43,7.95688749]
[1741485872273,0.31211374,589.5,588.43,7.95688749]
[1741485872472,0.31211374,589.49,588.43,7.95688749]
[1741485872768,0.31211374,589.48,588.43,7.95688749]
[1741485872967,0.31211374,589.51,588.43,7.95688749]
[1741485873168,0.31211374,589.5,588.43,7.95688749]
[1741485873369,0.31211374,589.49,588.43,7.95688749]
[1741485873572,1.2617338,589.47,588.43,7.95688749]
[1741485873770,0.31211374,589.46,588.43,7.95688749]
[1741485873968,0.31213971,589.45,588.43,7.95688749]
[1741485874374,0.31213971,589.44,588.43,7.95688749]
[1741485877473,0.29556274,589.43,588.43,7.95688749]
[1741485877673,0.3121474,589.42,588.43,7.95688749]
[1741485880179,1.2617338,589.54,588.43,7.95688749]
[1741485880378,0.3121507,589.41,588.43,7.95688749]
[1741485880576,0.3121507,589.4,588.43,7.95688749]
[1741485880980,0.3121507,589.53,588.43,7.95688749]
[1741485881175,0.3121507,589.52,588.43,7.95688749]
[1741485881580,0.3121507,589.51,588.43,7.95688749]
[1741485883180,0.31214747,589.5,588.43,7.95688749]
[1741485883377,0.31214747,589.49,588.43,7.95688749]
[1741485883577,0.31214747,589.48,588.43,7.95688749]
[1741485883780,0.31214747,589.49,588.43,7.95688749]
[1741485883978,0.31214747,589.48,588.43,7.95688749]
[1741485884180,0.2955665,589.5,588.43,7.95688749]
[1741485884379,0.31214227,589.49,588.43,7.95688749]
[1741485886482,0.60771128,589.48,588.43,7.95688749]
[1741485886782,0.31214227,589.47,588.43,7.95688749]
[1741485886988,0.31214292,589.46,588.43,7.95688749]
[1741485887295,0.31214292,589.45,588.43,7.95688749]
[1741485887596,0.31214292,589.44,588.43,7.95688749]
[1741485887795,0.31214292,589.43,588.43,7.95688749]
[1741485887994,0.31214292,589.42,588.43,7.95688749]
[1741485888195,0.31214292,589.47,588.43,7.95688749]
[1741485888496,0.31214292,589.46,588.43,7.95688749]
[1741485888693,0.31214292,589.47,588.43,7.95688749]
[1741485888892,0.31214292,589.46,588.43,7.95688749]
[1741485889093,0.31214292,589.47,588.43,7.95688749]
[1741485889488,0.31214292,589.46,588.43,7.95688749]
[1741485889688,0.31214292,589.45,588.43,7.95688749]
[1741485889895,0.31214292,589.49,588.43,7.95688749]
[1741485890396,0.29555395,589.48,588.43,7.95688749]
[1741485890594,0.31214292,589.47,588.43,7.95688749]
[1741485892496,0.31214292,589.65,588.43,7.95688749]
[1741485892697,0.31214292,589.64,588.43,7.95688749]
[1741485892897,0.31214292,589.65,588.43,7.95688749]
[1741485893092,1.2617338,589.69,588.43,7.95688749]
[1741485893093,0.31214292,589.64,588.43,7.95688749]
[1741485893298,0.31214292,589.65,588.43,7.95688749]
[1741485893500,1.86941059,589.64,588.43,7.95688749]
[1741485893695,0.31214292,589.63,588.43,7.95688749]
[1741485895900,1.2617338,589.62,588.43,7.95688749]
[1741485896101,0.31214292,589.61,588.43,7.95688749]
[1741485896301,0.60768181,589.61,588.43,7.95688749]
[1741485896601,0.31214292,589.6,588.43,7.95688749]
[1741485898401,0.31214292,589.59,588.43,7.95688749]
[1741485898601,0.31214292,589.61,588.43,7.95688749]
[1741485898998,0.31214292,589.62,588.43,7.95688749]
[1741485899198,0.31214292,589.61,588.43,7.95688749]
[1741485899395,0.29553011,589.6,588.43,7.95688749]
[1741485899802,0.31214292,589.59,588.43,7.95688749]
[1741485900597,1.2617338,589.5,588.43,7.95688749]
[1741485900801,0.31214292,589.49,588.43,7.95688749]
[1741485902504,0.60761916,589.48,588.43,7.95688749]
[1741485902703,0.31207274,589.47,588.43,7.95688749]
[1741485904603,0.31207274,589.53,588.43,7.95688749]
[1741485905505,0.2955414,589.52,588.43,7.95688749]
[1741485905697,0.31207274,589.51,588.43,7.95688749]
[1741485907400,0.31207274,589.6,588.43,7.95688749]
[1741485907601,0.31207274,589.59,588.43,7.95688749]
[1741485907801,0.31207274,589.6,588.43,7.95688749]
[1741485908002,0.31207274,589.59,588.43,7.95688749]
[1741485908202,0.31207274,589.58,588.43,7.95688749]
[1741485908405,0.29554768,589.59,588.43,7.95688749]
[1741485908602,0.31210287,589.58,588.43,7.95688749]
[1741485909606,1.2617338,589.57,588.43,7.95688749]
[1741485909798,0.31210287,589.56,588.43,7.95688749]
[1741485911510,0.2955527,589.55,588.43,7.95688749]
[1741485911710,0.31210287,589.54,588.43,7.95688749]
[1741485913410,0.29555521,589.53,588.43,7.95688749]
[1741485913810,0.31210287,589.52,588.43,7.95688749]
[1741485914916,1.2617338,589.51,588.43,7.95688749]
[1741485915211,0.31210287,589.5,588.43,7.95688749]
[1741485915715,1.2617338,589.51,588.43,7.95688749]
[1741485915915,0.31210373,589.5,588.43,7.95688749]
[1741485916415,0.29556023,589.49,588.43,7.95688749]
[1741485916614,0.31210373,589.48,588.43,7.95688749]
[1741485916916,1.2617338,589.46,588.43,7.95688749]
[1741485917313,0.31210373,589.45,588.43,7.95688749]
[1741485918212,1.2617338,589.46,588.43,7.95688749]
[1741485918412,0.31209402,589.45,588.43,7.95688749]
[1741485919316,0.31210353,589.44,588.43,7.95688749]
[1741485919518,0.2955665,589.44,588.43,7.95688749]
[1741485919716,0.31210353,589.43,588.43,7.95688749]
[1741485922413,1.2617338,589.45,588.43,7.95688749]
[1741485922717,0.31210353,589.44,588.43,7.95688749]
[1741485923416,0.29556776,589.43,588.43,7.95688749]
[1741485923717,0.31210353,589.42,588.43,7.95688749]
[1741485925515,0.6076738,589.41,588.43,7.95688749]
[1741485925715,0.31210353,589.4,588.43,7.95688749]
[1741485926818,0.31211413,589.39,588.43,7.95688749]
[1741485927118,0.31211413,589.38,588.43,7.95688749]
[1741485927319,0.31211413,589.4,588.43,7.95688749]
[1741485927510,0.31211413,589.39,588.43,7.95688749]
[1741485927712,0.31211413,589.4,588.43,7.95688749]
[1741485927915,0.31211413,589.39,588.43,7.95688749]
[1741485928313,0.31211413,589.38,588.43,7.95688749]
[1741485928513,0.31211413,589.37,588.43,7.95688749]
[1741485930212,0.3121142,589.36,588.43,7.95688749]
[1741485930421,0.3121142,589.35,588.43,7.95688749]
[1741485930718,0.31212177,589.34,588.43,7.95688749]
[1741485930918,0.31212177,589.33,588.43,7.95688749]
[1741485931119,0.31212177,589.37,588.43,7.95688749]
[1741485931419,0.29558157,589.32,588.43,7.95688749]
[1741485931620,0.31212177,589.31,588.43,7.95688749]
[1741485932319,0.31211673,589.3,588.43,7.95688749]
[1741485932514,0.31211673,589.29,588.43,7.95688749]
[1741485932717,0.31211673,589.31,588.43,7.95688749]
[1741485932917,0.31211673,589.3,588.43,7.95688749]
[1741485933115,0.31211673,589.29,588.43,7.95688749]
[1741485933417,0.31211673,589.28,588.43,7.95688749]
[1741485933614,0.31211673,589.31,588.43,7.95688749]